[Event "Titled Tuesday Blitz November 22 Late 2022"]
[White "Rizzo, Tobias"]
[Black "Han, Yichen"]
[WhiteFideId "30942691"]
[BlackFideId "1054430"]
[WhiteElo "2298"]
[BlackElo "2323"]
[Result "0-1"]
[Round "01"]
[TimeControl "180+1"]
[Date "2022.11.23"]
[WhiteClock "0:00:07"]
[BlackClock "0:00:51"]

1. d4 {[%clk 0:03:00]}  g6 {[%clk 0:02:58]} 2. e4 {[%clk 0:02:58]}  Bg7 {[%clk 0:02:59]} 3. Nc3 {[%clk 0:02:58]}  a6 {[%clk 0:02:58]} 4. Bf4 {[%clk 0:02:57]}  b5 {[%clk 0:02:57]} 5. Qd2 {[%clk 0:02:55]}  Bb7 {[%clk 0:02:57]} 6. f3 {[%clk 0:02:53]}  d6 {[%clk 0:02:57]} 7. h4 {[%clk 0:02:48]}  Nf6 {[%clk 0:02:56]} 8. g4 {[%clk 0:02:45]}  Nbd7 {[%clk 0:02:50]} 9. h5 {[%clk 0:02:44]}  e5 {[%clk 0:02:50]} 10. h6 {[%clk 0:02:17]}  Bf8 {[%clk 0:02:47]} 11. Be3 {[%clk 0:02:17]}  Be7 {[%clk 0:02:42]} 12. Nge2 {[%clk 0:02:13]}  c6 {[%clk 0:02:29]} 13. Ng3 {[%clk 0:02:04]}  Qa5 {[%clk 0:02:25]} 14. Bh3 {[%clk 0:01:53]}  exd4 {[%clk 0:02:15]} 15. Bxd4 {[%clk 0:01:51]}  Ne5 {[%clk 0:02:15]} 16. Bxe5 {[%clk 0:01:46]}  dxe5 {[%clk 0:02:16]} 17. g5 {[%clk 0:01:47]}  Rd8 {[%clk 0:02:12]} 18. Qe3 {[%clk 0:01:38]}  Nd7 {[%clk 0:02:09]} 19. O-O-O {[%clk 0:01:36]}  b4 {[%clk 0:02:01]} 20. Nb1 {[%clk 0:01:32]}  Qc5 {[%clk 0:01:54]} 21. Bxd7+ {[%clk 0:01:06]}  Rxd7 {[%clk 0:01:53]} 22. Qxc5 {[%clk 0:01:05]}  Bxc5 {[%clk 0:01:52]} 23. Rxd7 {[%clk 0:01:01]}  Kxd7 {[%clk 0:01:52]} 24. Nf1 {[%clk 0:00:51]}  a5 {[%clk 0:01:38]} 25. Nbd2 {[%clk 0:00:43]}  Ba6 {[%clk 0:01:38]} 26. Nb3 {[%clk 0:00:36]}  Bb6 {[%clk 0:01:38]} 27. Kd2 {[%clk 0:00:36]}  Ke6 {[%clk 0:01:38]} 28. Nc1 {[%clk 0:00:35]}  c5 {[%clk 0:01:34]} 29. b3 {[%clk 0:00:34]}  c4 {[%clk 0:01:28]} 30. bxc4 {[%clk 0:00:30]}  Bxc4 {[%clk 0:01:29]} 31. Ne3 {[%clk 0:00:28]}  Rd8+ {[%clk 0:01:25]} 32. Nd3 {[%clk 0:00:28]}  Bxa2 {[%clk 0:01:24]} 33. Ng4 {[%clk 0:00:21]}  Bc4 {[%clk 0:01:16]} 34. Nxe5 {[%clk 0:00:20]}  Bb5 {[%clk 0:01:09]} 35. f4 {[%clk 0:00:19]}  Bd4 {[%clk 0:01:03]} 36. f5+ {[%clk 0:00:19]}  Ke7 {[%clk 0:00:56]} 37. Nf3 {[%clk 0:00:14]}  Bc3+ {[%clk 0:00:56]} 38. Ke3 {[%clk 0:00:13]}  a4 {[%clk 0:00:55]} 39. Nf4 {[%clk 0:00:09]}  a3 {[%clk 0:00:52]} 40. Nd5+ {[%clk 0:00:08]}  Rxd5 {[%clk 0:00:52]} 41. exd5 {[%clk 0:00:08]}  a2 {[%clk 0:00:53]} 42. f6+ {[%clk 0:00:07]}  Kd6 {[%clk 0:00:52]} 43. Nd4 {[%clk 0:00:07]}  Bc4 {[%clk 0:00:48]} 44. Nb3 {[%clk 0:00:02]}  Bxb3 {[%clk 0:00:48]} 45. cxb3 {[%clk 0:00:03]}  a1=Q {[%clk 0:00:48]} 46. Rxa1 {[%clk 0:00:03]}  Bxa1 {[%clk 0:00:49]} 47. Ke4 {[%clk 0:00:03]}  Bb2 {[%clk 0:00:49]} 48. Kf4 {[%clk 0:00:03]}  Kxd5 {[%clk 0:00:49]} 49. Kg4 {[%clk 0:00:04]}  Bc1 {[%clk 0:00:49]} 50. Kh4 {[%clk 0:00:04]}  Ke5 {[%clk 0:00:49]} 51. Kg4 {[%clk 0:00:05]}  Ke4 {[%clk 0:00:49]} 52. Kh4 {[%clk 0:00:05]}  Kf5 {[%clk 0:00:50]} 53. Kh3 {[%clk 0:00:06]}  Bxg5 {[%clk 0:00:50]} 54. Kg3 {[%clk 0:00:07]}  Bxf6 {[%clk 0:00:51]} 0-1


[Site "https://www.chess.com"]

[Event "Titled Tuesday Blitz November 22 Late 2022"]
[White "Roman, Rodrigo"]
[Black "Yuan, Qingyu"]
[WhiteFideId "3701220"]
[BlackFideId "8609772"]
[WhiteElo "1995"]
[BlackElo "2359"]
[Result "0-1"]
[Round "01"]
[TimeControl "180+1"]
[Date "2022.11.23"]
[WhiteClock "0:00:47"]
[BlackClock "0:01:04"]

1. e4 {[%clk 0:03:00]}  e5 {[%clk 0:02:59]} 2. Nf3 {[%clk 0:02:59]}  Nc6 {[%clk 0:02:59]} 3. Bb5 {[%clk 0:02:59]}  Nf6 {[%clk 0:03:00]} 4. d3 {[%clk 0:02:55]}  Bc5 {[%clk 0:02:59]} 5. O-O {[%clk 0:02:55]}  Nd4 {[%clk 0:03:00]} 6. Bc4 {[%clk 0:02:53]}  d6 {[%clk 0:02:58]} 7. c3 {[%clk 0:02:52]}  Nxf3+ {[%clk 0:02:52]} 8. Qxf3 {[%clk 0:02:53]}  Be6 {[%clk 0:02:51]} 9. h3 {[%clk 0:02:50]}  h6 {[%clk 0:02:49]} 10. Be3 {[%clk 0:02:48]}  Bxe3 {[%clk 0:02:45]} 11. Qxe3 {[%clk 0:02:45]}  O-O {[%clk 0:02:37]} 12. Nd2 {[%clk 0:02:44]}  Qe7 {[%clk 0:02:36]} 13. Bxe6 {[%clk 0:02:44]}  fxe6 {[%clk 0:02:36]} 14. f4 {[%clk 0:02:44]}  exf4 {[%clk 0:02:33]} 15. Rxf4 {[%clk 0:02:44]}  Nh5 {[%clk 0:02:34]} 16. Rg4 {[%clk 0:02:40]}  Kh7 {[%clk 0:02:30]} 17. d4 {[%clk 0:02:37]}  a5 {[%clk 0:02:29]} 18. a4 {[%clk 0:02:36]}  e5 {[%clk 0:02:29]} 19. d5 {[%clk 0:02:34]}  Rf6 {[%clk 0:02:26]} 20. Nc4 {[%clk 0:02:16]}  b6 {[%clk 0:02:18]} 21. Kh2 {[%clk 0:02:05]}  Qd7 {[%clk 0:02:10]} 22. Rh4 {[%clk 0:01:54]}  Nf4 {[%clk 0:02:09]} 23. b3 {[%clk 0:01:46]}  Raf8 {[%clk 0:01:52]} 24. b4 {[%clk 0:01:43]}  axb4 {[%clk 0:01:52]} 25. cxb4 {[%clk 0:01:44]}  b5 {[%clk 0:01:53]} 26. Na5 {[%clk 0:01:42]}  bxa4 {[%clk 0:01:39]} 27. Nc6 {[%clk 0:01:42]}  Ra8 {[%clk 0:01:36]} 28. Rg4 {[%clk 0:01:32]}  Qf7 {[%clk 0:01:28]} 29. Rg3 {[%clk 0:01:29]}  Nh5 {[%clk 0:01:27]} 30. Rf3 {[%clk 0:01:29]}  Nf4 {[%clk 0:01:25]} 31. g3 {[%clk 0:01:20]}  Nxd5 {[%clk 0:01:21]} 32. Rxf6 {[%clk 0:01:19]}  Nxf6 {[%clk 0:01:21]} 33. Kg2 {[%clk 0:01:14]}  Qc4 {[%clk 0:01:19]} 34. Ne7 {[%clk 0:01:10]}  Qxe4+ {[%clk 0:01:12]} 35. Qxe4+ {[%clk 0:01:11]}  Nxe4 {[%clk 0:01:13]} 36. Ra3 {[%clk 0:01:06]}  Nd2 {[%clk 0:01:07]} 37. Nd5 {[%clk 0:01:03]}  Nc4 {[%clk 0:01:06]} 38. Ra2 {[%clk 0:00:58]}  c6 {[%clk 0:01:04]} 39. Nc3 {[%clk 0:00:58]}  a3 {[%clk 0:01:04]} 40. Kf3 {[%clk 0:00:54]}  Rb8 {[%clk 0:01:04]} 41. Ke2 {[%clk 0:00:47]}  Rxb4 {[%clk 0:01:04]} 42. Kd3 {[%clk 0:00:48]}  d5 {[%clk 0:01:05]} 43. g4 {[%clk 0:00:48]}  Kg6 {[%clk 0:01:04]} 44. h4 {[%clk 0:00:48]}  Rb2 {[%clk 0:01:04]} 45. Ra1 {[%clk 0:00:47]}  Rd2# {[%clk 0:01:04]} 0-1


[Site "https://www.chess.com"]

[Event "Titled Tuesday Blitz November 22 Late 2022"]
[White "Romanchuk, Viktor"]
[Black "Guzman Moneo, Alberto"]
[WhiteFideId "14109271"]
[BlackFideId "2209616"]
[WhiteElo "2242"]
[BlackElo "2157"]
[Result "1-0"]
[Round "01"]
[TimeControl "180+1"]
[Date "2022.11.23"]
[WhiteClock "0:01:06"]
[BlackClock "0:00:59"]

1. d4 {[%clk 0:02:56]}  Nf6 {[%clk 0:02:54]} 2. c4 {[%clk 0:02:55]}  c5 {[%clk 0:02:54]} 3. Nf3 {[%clk 0:02:54]}  cxd4 {[%clk 0:02:54]} 4. Nxd4 {[%clk 0:02:55]}  e5 {[%clk 0:02:54]} 5. Nb5 {[%clk 0:02:55]}  d5 {[%clk 0:02:53]} 6. cxd5 {[%clk 0:02:56]}  Bc5 {[%clk 0:02:51]} 7. N5c3 {[%clk 0:02:56]}  O-O {[%clk 0:02:49]} 8. h3 {[%clk 0:02:56]}  e4 {[%clk 0:02:48]} 9. g4 {[%clk 0:02:56]}  Re8 {[%clk 0:02:47]} 10. Bg2 {[%clk 0:02:55]}  e3 {[%clk 0:02:45]} 11. Bxe3 {[%clk 0:02:55]}  Rxe3 {[%clk 0:02:29]} 12. fxe3 {[%clk 0:02:56]}  Bxe3 {[%clk 0:02:29]} 13. Na3 {[%clk 0:02:40]}  Ne8 {[%clk 0:02:22]} 14. Qd3 {[%clk 0:02:27]}  Qh4+ {[%clk 0:02:20]} 15. Kd1 {[%clk 0:02:27]}  Bc5 {[%clk 0:02:18]} 16. Nc4 {[%clk 0:02:21]}  Nd6 {[%clk 0:02:18]} 17. Nxd6 {[%clk 0:02:11]}  Bxd6 {[%clk 0:02:17]} 18. Ne4 {[%clk 0:02:11]}  Be5 {[%clk 0:02:14]} 19. Rc1 {[%clk 0:02:06]}  Nd7 {[%clk 0:02:06]} 20. Rf1 {[%clk 0:01:59]}  Bxb2 {[%clk 0:01:57]} 21. Rc7 {[%clk 0:01:49]}  Be5 {[%clk 0:01:54]} 22. d6 {[%clk 0:01:50]}  Qd8 {[%clk 0:01:33]} 23. Qd5 {[%clk 0:01:20]}  Qe8 {[%clk 0:01:25]} 24. g5 {[%clk 0:01:14]}  Rb8 {[%clk 0:01:04]} 25. h4 {[%clk 0:01:12]}  b6 {[%clk 0:01:04]} 26. Bh3 {[%clk 0:01:13]}  Nf8 {[%clk 0:00:59]} 27. Bxc8 {[%clk 0:01:08]}  Qd8 {[%clk 0:00:59]} 28. Qxf7+ {[%clk 0:01:06]} 1-0


[Site "https://www.chess.com"]

[Event "Titled Tuesday Blitz November 22 Late 2022"]
[White "Sabuk, Piotr"]
[Black "Baltaci, Ismail Tarik"]
[WhiteFideId "1137565"]
[BlackFideId "6365213"]
[WhiteElo "2326"]
[BlackElo "2321"]
[Result "1-0"]
[Round "01"]
[TimeControl "180+1"]
[Date "2022.11.23"]
[WhiteClock "0:00:18"]
[BlackClock "0:00:15"]

1. d4 {[%clk 0:02:59]}  Nf6 {[%clk 0:02:58]} 2. Nf3 {[%clk 0:02:59]}  e6 {[%clk 0:02:58]} 3. Bg5 {[%clk 0:02:59]}  d5 {[%clk 0:02:56]} 4. e3 {[%clk 0:02:56]}  Nbd7 {[%clk 0:02:56]} 5. c4 {[%clk 0:02:49]}  Be7 {[%clk 0:02:56]} 6. Nc3 {[%clk 0:02:49]}  O-O {[%clk 0:02:55]} 7. Rc1 {[%clk 0:02:43]}  a6 {[%clk 0:02:52]} 8. Qc2 {[%clk 0:02:33]}  dxc4 {[%clk 0:02:48]} 9. Bxc4 {[%clk 0:02:34]}  b5 {[%clk 0:02:48]} 10. Bd3 {[%clk 0:02:34]}  h6 {[%clk 0:02:47]} 11. Bh4 {[%clk 0:02:30]}  Bb7 {[%clk 0:02:47]} 12. O-O {[%clk 0:02:28]}  c5 {[%clk 0:02:47]} 13. Ne4 {[%clk 0:02:10]}  Nxe4 {[%clk 0:02:45]} 14. Bxe7 {[%clk 0:02:10]}  Qxe7 {[%clk 0:02:45]} 15. Bxe4 {[%clk 0:02:10]}  Bxe4 {[%clk 0:02:43]} 16. Qxe4 {[%clk 0:02:11]}  Nf6 {[%clk 0:02:44]} 17. Qe5 {[%clk 0:02:01]}  cxd4 {[%clk 0:02:42]} 18. Nxd4 {[%clk 0:01:59]}  Rac8 {[%clk 0:02:38]} 19. Nf5 {[%clk 0:01:48]}  Qb4 {[%clk 0:02:26]} 20. a3 {[%clk 0:01:41]}  Rxc1 {[%clk 0:01:27]} 21. Nxh6+ {[%clk 0:01:09]}  Kh7 {[%clk 0:01:21]} 22. axb4 {[%clk 0:01:07]}  Rxf1+ {[%clk 0:01:16]} 23. Kxf1 {[%clk 0:01:08]}  Kxh6 {[%clk 0:01:16]} 24. Qd6 {[%clk 0:00:59]}  Rc8 {[%clk 0:00:53]} 25. Qxa6 {[%clk 0:00:57]}  Rc2 {[%clk 0:00:51]} 26. Qxb5 {[%clk 0:00:53]}  Ne4 {[%clk 0:00:50]} 27. f3 {[%clk 0:00:50]}  Nf6 {[%clk 0:00:42]} 28. g4 {[%clk 0:00:46]}  Nd5 {[%clk 0:00:34]} 29. e4 {[%clk 0:00:33]}  Ne3+ {[%clk 0:00:34]} 30. Ke1 {[%clk 0:00:33]}  Ng2+ {[%clk 0:00:32]} 31. Kd1 {[%clk 0:00:29]}  Ne3+ {[%clk 0:00:32]} 32. Ke1 {[%clk 0:00:29]}  Ng2+ {[%clk 0:00:33]} 33. Kf1 {[%clk 0:00:30]}  Ne3+ {[%clk 0:00:33]} 34. Kg1 {[%clk 0:00:30]}  g6 {[%clk 0:00:34]} 35. h4 {[%clk 0:00:23]}  f6 {[%clk 0:00:33]} 36. Qb8 {[%clk 0:00:20]}  Kg7 {[%clk 0:00:18]} 37. Qa7+ {[%clk 0:00:20]}  Kg8 {[%clk 0:00:18]} 38. Qxe3 {[%clk 0:00:19]}  Kf7 {[%clk 0:00:18]} 39. Qb3 {[%clk 0:00:18]}  Rd2 {[%clk 0:00:16]} 40. b5 {[%clk 0:00:18]}  Rd6 {[%clk 0:00:15]} 41. b6 {[%clk 0:00:18]} 1-0


[Site "https://www.chess.com"]

[Event "Titled Tuesday Blitz November 22 Late 2022"]
[White "Sargsyan, Anna M."]
[Black "Young, Ryan"]
[WhiteFideId "13308130"]
[BlackFideId "2049945"]
[WhiteElo "2284"]
[BlackElo "2300"]
[Result "1-0"]
[Round "01"]
[TimeControl "180+1"]
[Date "2022.11.23"]
[WhiteClock "0:01:09"]
[BlackClock "0:00:19"]

1. d4 {[%clk 0:03:00]}  Nf6 {[%clk 0:02:57]} 2. c4 {[%clk 0:03:00]}  g6 {[%clk 0:02:49]} 3. g3 {[%clk 0:02:59]}  Bg7 {[%clk 0:02:48]} 4. Bg2 {[%clk 0:03:00]}  O-O {[%clk 0:02:49]} 5. Nc3 {[%clk 0:03:00]}  d6 {[%clk 0:02:46]} 6. Nf3 {[%clk 0:03:00]}  Nc6 {[%clk 0:02:46]} 7. O-O {[%clk 0:03:01]}  e5 {[%clk 0:02:44]} 8. dxe5 {[%clk 0:03:01]}  dxe5 {[%clk 0:02:40]} 9. Bg5 {[%clk 0:03:01]}  Be6 {[%clk 0:02:25]} 10. Nd2 {[%clk 0:02:57]}  a6 {[%clk 0:01:54]} 11. Qc1 {[%clk 0:02:49]}  Re8 {[%clk 0:01:52]} 12. Nd5 {[%clk 0:02:41]}  Bxd5 {[%clk 0:01:34]} 13. cxd5 {[%clk 0:02:40]}  Nd4 {[%clk 0:01:29]} 14. Re1 {[%clk 0:02:37]}  h6 {[%clk 0:01:19]} 15. Bxf6 {[%clk 0:02:33]}  Qxf6 {[%clk 0:01:12]} 16. e3 {[%clk 0:02:30]}  Nb5 {[%clk 0:01:06]} 17. a4 {[%clk 0:02:29]}  Nd6 {[%clk 0:01:04]} 18. Qxc7 {[%clk 0:02:28]}  Rac8 {[%clk 0:01:03]} 19. Qb6 {[%clk 0:02:28]}  Rc2 {[%clk 0:00:57]} 20. Rad1 {[%clk 0:01:59]}  Rec8 {[%clk 0:00:55]} 21. b3 {[%clk 0:01:48]}  Bf8 {[%clk 0:00:40]} 22. Rf1 {[%clk 0:01:38]}  Qd8 {[%clk 0:00:29]} 23. Qxd8 {[%clk 0:01:33]}  Rxd8 {[%clk 0:00:29]} 24. Nf3 {[%clk 0:01:30]}  Bg7 {[%clk 0:00:26]} 25. Rc1 {[%clk 0:01:30]}  Rdc8 {[%clk 0:00:27]} 26. Rxc2 {[%clk 0:01:30]}  Rxc2 {[%clk 0:00:27]} 27. Rb1 {[%clk 0:01:27]}  Kf8 {[%clk 0:00:26]} 28. Kf1 {[%clk 0:01:23]}  Ke7 {[%clk 0:00:26]} 29. Ne1 {[%clk 0:01:18]}  Ra2 {[%clk 0:00:23]} 30. Nd3 {[%clk 0:01:12]}  b6 {[%clk 0:00:20]} 31. Nb4 {[%clk 0:01:09]}  a5 {[%clk 0:00:19]} 32. Nxa2 {[%clk 0:01:09]} 1-0


[Site "https://www.chess.com"]

[Event "Titled Tuesday Blitz November 22 Late 2022"]
[White "Sattarov, Bobir"]
[Black "Khandelwal, Ankush"]
[WhiteFideId "14203081"]
[BlackFideId "413470"]
[WhiteElo "2354"]
[BlackElo "2271"]
[Result "0-1"]
[Round "01"]
[TimeControl "180+1"]
[Date "2022.11.23"]
[WhiteClock "0:00:04"]
[BlackClock "0:00:08"]

1. e4 {[%clk 0:02:45]}  c5 {[%clk 0:02:59]} 2. Nc3 {[%clk 0:02:44]}  a6 {[%clk 0:02:58]} 3. g3 {[%clk 0:02:43]}  b5 {[%clk 0:02:41]} 4. Bg2 {[%clk 0:02:42]}  Bb7 {[%clk 0:02:37]} 5. Nge2 {[%clk 0:02:42]}  Nf6 {[%clk 0:02:24]} 6. d4 {[%clk 0:02:33]}  cxd4 {[%clk 0:02:18]} 7. Nxd4 {[%clk 0:02:34]}  e6 {[%clk 0:02:15]} 8. O-O {[%clk 0:02:34]}  b4 {[%clk 0:02:11]} 9. Na4 {[%clk 0:02:33]}  Bxe4 {[%clk 0:02:05]} 10. Bxe4 {[%clk 0:02:33]}  Nxe4 {[%clk 0:02:06]} 11. c4 {[%clk 0:02:33]}  Nc5 {[%clk 0:01:46]} 12. Re1 {[%clk 0:02:24]}  Qf6 {[%clk 0:01:24]} 13. Be3 {[%clk 0:02:01]}  Nxa4 {[%clk 0:01:17]} 14. Qxa4 {[%clk 0:02:01]}  Bc5 {[%clk 0:01:17]} 15. Nb3 {[%clk 0:00:43]}  Bxe3 {[%clk 0:01:15]} 16. Rxe3 {[%clk 0:00:44]}  Nc6 {[%clk 0:01:15]} 17. Rd1 {[%clk 0:00:40]}  Qxb2 {[%clk 0:01:07]} 18. Nc5 {[%clk 0:00:10]}  O-O {[%clk 0:00:37]} 19. Nxd7 {[%clk 0:00:10]}  Rfc8 {[%clk 0:00:17]} 20. Nb6 {[%clk 0:00:10]}  b3 {[%clk 0:00:18]} 21. Rxb3 {[%clk 0:00:08]}  Qc2 {[%clk 0:00:18]} 22. Rdb1 {[%clk 0:00:04]}  Nd4 {[%clk 0:00:18]} 23. Rb4 {[%clk 0:00:04]}  Nf3+ {[%clk 0:00:10]} 24. Kg2 {[%clk 0:00:05]}  Qe4 {[%clk 0:00:10]} 25. c5 {[%clk 0:00:02]}  Nh4+ {[%clk 0:00:06]} 26. Kh3 {[%clk 0:00:02]}  Qg2+ {[%clk 0:00:06]} 27. Kxh4 {[%clk 0:00:03]}  Qxh2+ {[%clk 0:00:07]} 28. Kg4 {[%clk 0:00:03]}  h5+ {[%clk 0:00:07]} 29. Kf3 {[%clk 0:00:03]}  Rxc5 {[%clk 0:00:06]} 30. Nxa8 {[%clk 0:00:03]}  Rc3+ {[%clk 0:00:07]} 31. Ke4 {[%clk 0:00:03]}  Qg2+ {[%clk 0:00:06]} 32. Kd4 {[%clk 0:00:03]}  Qf3 {[%clk 0:00:06]} 33. Rc4 {[%clk 0:00:02]}  Qd3+ {[%clk 0:00:05]} 34. Kc5 {[%clk 0:00:02]}  Qd5+ {[%clk 0:00:06]} 35. Kb6 {[%clk 0:00:02]}  Rxc4 {[%clk 0:00:06]} 36. Qe8+ {[%clk 0:00:02]}  Kh7 {[%clk 0:00:07]} 37. Nc7 {[%clk 0:00:03]}  Qc5+ {[%clk 0:00:06]} 38. Kb7 {[%clk 0:00:03]}  Qxc7+ {[%clk 0:00:07]} 39. Kxa6 {[%clk 0:00:03]}  Rc6+ {[%clk 0:00:06]} 40. Kb5 {[%clk 0:00:03]}  Rb6+ {[%clk 0:00:07]} 41. Ka4 {[%clk 0:00:04]}  Qa7# {[%clk 0:00:08]} 0-1


[Site "https://www.chess.com"]

[Event "Titled Tuesday Blitz November 22 Late 2022"]
[White "Sokolovsky, Yahli"]
[Black "Schmidt, Harald"]
[WhiteFideId "2820242"]
[BlackFideId "4648358"]
[WhiteElo "2316"]
[BlackElo "2279"]
[Result "1-0"]
[Round "01"]
[TimeControl "180+1"]
[Date "2022.11.23"]
[WhiteClock "0:00:23"]
[BlackClock "0:00:18"]

1. b3 {[%clk 0:03:00]}  c5 {[%clk 0:02:58]} 2. Bb2 {[%clk 0:03:00]}  Nc6 {[%clk 0:02:57]} 3. e3 {[%clk 0:03:01]}  a6 {[%clk 0:02:56]} 4. Nf3 {[%clk 0:03:00]}  d5 {[%clk 0:02:54]} 5. d4 {[%clk 0:03:01]}  Bg4 {[%clk 0:02:52]} 6. Be2 {[%clk 0:02:49]}  Nf6 {[%clk 0:02:49]} 7. O-O {[%clk 0:02:50]}  e6 {[%clk 0:02:47]} 8. h3 {[%clk 0:02:47]}  Bh5 {[%clk 0:02:46]} 9. Ne5 {[%clk 0:02:43]}  Bxe2 {[%clk 0:02:43]} 10. Qxe2 {[%clk 0:02:44]}  Rc8 {[%clk 0:02:39]} 11. f4 {[%clk 0:02:40]}  Be7 {[%clk 0:02:38]} 12. Nd2 {[%clk 0:02:36]}  O-O {[%clk 0:02:38]} 13. a3 {[%clk 0:02:24]}  cxd4 {[%clk 0:02:25]} 14. exd4 {[%clk 0:02:24]}  Qb6 {[%clk 0:02:25]} 15. Qe3 {[%clk 0:02:19]}  Rfe8 {[%clk 0:02:21]} 16. Rac1 {[%clk 0:02:15]}  Qa5 {[%clk 0:02:09]} 17. Kh2 {[%clk 0:02:13]}  Qc7 {[%clk 0:01:59]} 18. g4 {[%clk 0:02:11]}  Nd7 {[%clk 0:01:57]} 19. Ndf3 {[%clk 0:02:06]}  f6 {[%clk 0:01:56]} 20. Nxd7 {[%clk 0:01:56]}  Qxd7 {[%clk 0:01:55]} 21. g5 {[%clk 0:01:57]}  Bd6 {[%clk 0:01:48]} 22. Kh1 {[%clk 0:01:40]}  Ne7 {[%clk 0:01:37]} 23. gxf6 {[%clk 0:01:23]}  gxf6 {[%clk 0:01:36]} 24. Ne5 {[%clk 0:01:24]}  fxe5 {[%clk 0:01:26]} 25. fxe5 {[%clk 0:01:24]}  Bc7 {[%clk 0:01:23]} 26. Qg5+ {[%clk 0:01:23]}  Ng6 {[%clk 0:01:19]} 27. Rf6 {[%clk 0:01:23]}  Bd8 {[%clk 0:01:17]} 28. Rxg6+ {[%clk 0:01:23]}  hxg6 {[%clk 0:01:13]} 29. Qxg6+ {[%clk 0:01:24]}  Kh8 {[%clk 0:01:12]} 30. Qh5+ {[%clk 0:01:24]}  Qh7 {[%clk 0:01:01]} 31. Qxe8+ {[%clk 0:01:24]}  Qg8 {[%clk 0:01:01]} 32. Qh5+ {[%clk 0:00:57]}  Qh7 {[%clk 0:01:00]} 33. Qxh7+ {[%clk 0:00:58]}  Kxh7 {[%clk 0:01:00]} 34. c4 {[%clk 0:00:59]}  Bg5 {[%clk 0:00:54]} 35. Rg1 {[%clk 0:00:50]}  Bh6 {[%clk 0:00:45]} 36. c5 {[%clk 0:00:49]}  Rf8 {[%clk 0:00:44]} 37. Kg2 {[%clk 0:00:48]}  Kg6 {[%clk 0:00:40]} 38. Rf1 {[%clk 0:00:45]}  Rxf1 {[%clk 0:00:35]} 39. Kxf1 {[%clk 0:00:46]}  Kf5 {[%clk 0:00:35]} 40. Bc3 {[%clk 0:00:45]}  Ke4 {[%clk 0:00:35]} 41. Ke2 {[%clk 0:00:45]}  Bc1 {[%clk 0:00:31]} 42. a4 {[%clk 0:00:36]}  a5 {[%clk 0:00:30]} 43. h4 {[%clk 0:00:36]}  Bf4 {[%clk 0:00:29]} 44. h5 {[%clk 0:00:35]}  Bh6 {[%clk 0:00:28]} 45. Bb2 {[%clk 0:00:21]}  Bg5 {[%clk 0:00:25]} 46. Ba1 {[%clk 0:00:21]}  Bh6 {[%clk 0:00:24]} 47. Bc3 {[%clk 0:00:22]}  Bg5 {[%clk 0:00:24]} 48. Bd2 {[%clk 0:00:23]}  Be7 {[%clk 0:00:18]} 49. h6 {[%clk 0:00:22]}  Bf8 {[%clk 0:00:18]} 50. h7 {[%clk 0:00:22]}  Bg7 {[%clk 0:00:18]} 51. Bg5 {[%clk 0:00:23]} 1-0


[Site "https://www.chess.com"]

[Event "Titled Tuesday Blitz November 22 Late 2022"]
[White "Sreyas Payyappat"]
[Black "Djordjevic, Vuk"]
[WhiteFideId "46674969"]
[BlackFideId "902098"]
[WhiteElo "2083"]
[BlackElo "2456"]
[Result "1-0"]
[Round "01"]
[TimeControl "180+1"]
[Date "2022.11.23"]
[WhiteClock "0:01:37"]
[BlackClock "0:00:02"]

1. e4 {[%clk 0:02:59]}  d5 {[%clk 0:02:54]} 2. exd5 {[%clk 0:02:57]}  Qxd5 {[%clk 0:02:53]} 3. d4 {[%clk 0:02:58]}  e5 {[%clk 0:02:50]} 4. Nf3 {[%clk 0:02:53]}  Nc6 {[%clk 0:02:50]} 5. c4 {[%clk 0:02:50]}  Bb4+ {[%clk 0:02:47]} 6. Nc3 {[%clk 0:02:41]}  Qe4+ {[%clk 0:02:42]} 7. Be3 {[%clk 0:02:40]}  Bf5 {[%clk 0:01:55]} 8. d5 {[%clk 0:02:34]}  Bxc3+ {[%clk 0:01:35]} 9. bxc3 {[%clk 0:02:35]}  Nce7 {[%clk 0:01:29]} 10. Qb3 {[%clk 0:02:29]}  b6 {[%clk 0:01:18]} 11. O-O-O {[%clk 0:02:25]}  Bg6 {[%clk 0:00:56]} 12. Bd3 {[%clk 0:02:20]}  Qg4 {[%clk 0:00:52]} 13. Nxe5 {[%clk 0:02:19]}  Qc8 {[%clk 0:00:35]} 14. Bxg6 {[%clk 0:02:14]}  hxg6 {[%clk 0:00:32]} 15. c5 {[%clk 0:02:08]}  Rh5 {[%clk 0:00:08]} 16. f4 {[%clk 0:02:00]}  f6 {[%clk 0:00:07]} 17. Nc6 {[%clk 0:01:42]}  Nxc6 {[%clk 0:00:04]} 18. dxc6 {[%clk 0:01:41]}  Ne7 {[%clk 0:00:05]} 19. Rhe1 {[%clk 0:01:39]}  bxc5 {[%clk 0:00:05]} 20. Bxc5 {[%clk 0:01:37]}  Rxc5 {[%clk 0:00:02]} 21. Qg8# {[%clk 0:01:37]} 1-0


[Site "https://www.chess.com"]

[Event "Titled Tuesday Blitz November 22 Late 2022"]
[White "Swiercz, Dariusz"]
[Black "Graif, William"]
[WhiteFideId "1126881"]
[BlackFideId "2609835"]
[WhiteElo "2627"]
[BlackElo "2205"]
[Result "1-0"]
[Round "01"]
[TimeControl "180+1"]
[Date "2022.11.22"]
[WhiteClock "0:00:18"]
[BlackClock "0:00:02"]

1. e4 {[%clk 0:02:50]}  e5 {[%clk 0:02:58]} 2. Nf3 {[%clk 0:02:50]}  Bc5 {[%clk 0:02:57]} 3. Bc4 {[%clk 0:02:46]}  Nf6 {[%clk 0:02:57]} 4. d3 {[%clk 0:02:46]}  Nc6 {[%clk 0:02:51]} 5. c3 {[%clk 0:02:46]}  d6 {[%clk 0:02:48]} 6. O-O {[%clk 0:02:41]}  a6 {[%clk 0:02:31]} 7. a4 {[%clk 0:02:40]}  Ba7 {[%clk 0:02:22]} 8. Be3 {[%clk 0:02:38]}  Bxe3 {[%clk 0:02:17]} 9. fxe3 {[%clk 0:02:38]}  O-O {[%clk 0:02:05]} 10. Nbd2 {[%clk 0:02:38]}  d5 {[%clk 0:01:25]} 11. exd5 {[%clk 0:02:31]}  Nxd5 {[%clk 0:01:26]} 12. Qe2 {[%clk 0:02:31]}  h6 {[%clk 0:01:18]} 13. Rf2 {[%clk 0:02:15]}  Be6 {[%clk 0:01:15]} 14. Raf1 {[%clk 0:02:06]}  Qe7 {[%clk 0:01:13]} 15. d4 {[%clk 0:01:49]}  exd4 {[%clk 0:00:49]} 16. exd4 {[%clk 0:01:50]}  Nf4 {[%clk 0:00:36]} 17. Qd1 {[%clk 0:01:31]}  Bxc4 {[%clk 0:00:32]} 18. Nxc4 {[%clk 0:01:32]}  Rad8 {[%clk 0:00:26]} 19. Nfe5 {[%clk 0:01:19]}  Nxe5 {[%clk 0:00:24]} 20. Nxe5 {[%clk 0:01:20]}  g5 {[%clk 0:00:12]} 21. Qg4 {[%clk 0:01:14]}  f6 {[%clk 0:00:10]} 22. Rxf4 {[%clk 0:00:53]}  fxe5 {[%clk 0:00:10]} 23. Rxf8+ {[%clk 0:00:53]}  Rxf8 {[%clk 0:00:11]} 24. Rxf8+ {[%clk 0:00:54]}  Qxf8 {[%clk 0:00:06]} 25. Qe6+ {[%clk 0:00:49]}  Kh7 {[%clk 0:00:04]} 26. Qxe5 {[%clk 0:00:46]}  Qf7 {[%clk 0:00:03]} 27. Qe4+ {[%clk 0:00:45]}  Kg7 {[%clk 0:00:03]} 28. Qxb7 {[%clk 0:00:19]}  Qe7 {[%clk 0:00:03]} 29. h3 {[%clk 0:00:18]}  Qe3+ {[%clk 0:00:02]} 30. Kh2 {[%clk 0:00:18]}  Qf4+ {[%clk 0:00:02]} 31. g3 {[%clk 0:00:18]}  Qd2+ {[%clk 0:00:01]} 32. Qg2 {[%clk 0:00:19]}  Qc1 {[%clk 0:00:02]} 33. Qe2 {[%clk 0:00:18]} 1-0


[Site "https://www.chess.com"]